fUST/lending_fUST_20250227
["ID","MTS","AMOUNT","RATE_DAILY","PERIOD"]
[354715404,1740641440073,-500.0,0.00046575,120]
[354715405,1740641440082,-203.73351609,0.00046575,120]
[354715406,1740641440091,-500.0,0.00046575,120]
[354715407,1740641440101,-500.0,0.00046575,120]
[354715408,1740641440110,-500.0,0.00046575,120]
[354715409,1740641440120,-503.74310598,0.00046575,120]
[354715410,1740641440130,-500.0,0.00046575,120]
[354715411,1740641440140,-500.0,0.00046575,120]
[354715412,1740641440150,-963.1,0.00046575,120]
[354715413,1740641440164,-500.0,0.00046575,120]
[354715414,1740641440174,-500.0,0.00046575,120]
[354715415,1740641440183,-500.0,0.00046575,120]
[354715416,1740641440194,-500.0,0.00046575,120]
[354715417,1740641440205,-500.0,0.00046575,120]
[354715418,1740641440215,-500.0,0.00046575,120]
[354715419,1740641440225,-501.61087686,0.00046575,120]
[354715420,1740641440234,-500.71202415,0.00046575,120]
[354715421,1740641440245,-500.0,0.00046575,120]
[354715422,1740641440254,-500.0,0.00046575,120]
[354715423,1740641440264,-500.0,0.00046575,120]
[354715424,1740641440274,-500.0,0.00046575,120]
[354715425,1740641440283,-500.0,0.00046575,120]
[354715426,1740641440293,-500.0,0.00046575,120]
[354715427,1740641440302,-500.0,0.00046575,120]
[354715428,1740641440311,-500.0,0.00046575,120]
[354715429,1740641440321,-500.0,0.00046575,120]
[354715430,1740641440330,-500.0,0.00046575,120]
[354715431,1740641440340,-500.0,0.00046575,120]
[354715432,1740641440349,-500.0,0.00046575,120]
[354715433,1740641440358,-630.09995008,0.00046575,120]
[354715434,1740641440367,-500.0,0.00046575,120]
[354715435,1740641440376,-500.0,0.00046575,120]
[354715436,1740641440386,-500.0,0.00046575,120]
[354715437,1740641440395,-500.0,0.00046575,120]
[354715438,1740641440405,-500.0,0.00046575,120]
[354715439,1740641440414,-500.0,0.00046575,120]
[354715440,1740641440423,-508.44057828,0.00046575,120]
[354715441,1740641440433,-500.0,0.00046575,120]
[354715442,1740641440445,-500.0,0.00046575,120]
[354715443,1740641440454,-500.0,0.00046575,120]
[354715444,1740641440464,-500.0,0.00046575,120]
[354715445,1740641440473,-500.0,0.00046575,120]
[354715446,1740641440483,-500.0,0.00046575,120]
[354715447,1740641440492,-536.45140788,0.00046575,120]
[354715448,1740641440501,-500.0,0.00046575,120]
[354715449,1740641440511,-843.76,0.00046575,120]
[354715450,1740641440520,-557.18,0.00046575,120]
[354715451,1740641440530,-500.0,0.00046575,120]
[354715452,1740641440539,-500.0,0.00046575,120]
[354715453,1740641440549,-178.61843389,0.00046575,120]
[354715454,1740641440558,-500.0,0.00046575,120]
[354715455,1740641440567,-500.0,0.00046575,120]
[354715456,1740641440576,-500.0,0.00046575,120]
[354715457,1740641440586,-500.0,0.00046575,120]
[354715458,1740641440596,-500.0,0.00046575,120]
[354715459,1740641440605,-500.0,0.00046575,120]
[354715460,1740641440615,-511.01475335,0.00046575,120]
[354715461,1740641440624,-500.63904926,0.00046575,120]
[354715462,1740641440634,-500.0,0.00046575,120]
[354715463,1740641440643,-500.0,0.00046575,120]
[354715464,1740641440653,-500.68709343,0.00046575,120]
[354715465,1740641440662,-500.53823089,0.00046575,120]
[354715466,1740641440672,-500.0,0.00046575,120]
[354715467,1740641440682,-500.0,0.00046575,120]
[354715468,1740641440693,-500.0,0.00046575,120]
[354715469,1740641440702,-500.0,0.00046575,120]
[354715470,1740641440712,-500.0,0.00046575,120]
[354715471,1740641440721,-500.0,0.00046575,120]
[354715472,1740641440731,-500.0,0.00046575,120]
[354715473,1740641440740,-629.95,0.00046575,120]
[354715474,1740641440749,-500.0,0.00046575,120]
[354715475,1740641440758,-500.0,0.00046575,120]
[354715476,1740641440767,-666.15,0.00046575,120]
[354715477,1740641440777,-500.0,0.00046575,120]
[354715478,1740641440786,-500.0,0.00046575,120]
[354715479,1740641440796,-938.01609832,0.00046575,30]
[354715480,1740641440805,-500.0,0.00046575,15]
[354715481,1740641440816,-500.0,0.00046575,120]
[354715482,1740641440827,-255.12916363,0.00046575,120]
[354715483,1740641440838,-500.0,0.00046575,120]
[354715484,1740641440848,-500.89193196,0.00046575,120]
[354715485,1740641440858,-500.0,0.00046575,120]
[354715486,1740641440867,-500.0,0.00046575,120]
[354715487,1740641440876,-500.0,0.00046575,120]
[354715488,1740641440888,-501.74638822,0.00046575,120]
[354715489,1740641440899,-500.0,0.00046575,120]
[354715490,1740641440909,-500.0,0.00046575,120]
[354715491,1740641440919,-502.47491438,0.00046575,120]
[354715492,1740641440930,-500.0,0.00046575,120]
[354715493,1740641440941,-500.0,0.00046575,120]
[354715494,1740641440951,-500.0,0.00046575,120]
[354715495,1740641440960,-500.0,0.00046575,120]
[354715496,1740641440969,-500.0,0.00046575,120]
[354715497,1740641440979,-527.76,0.00046575,120]
[354715498,1740641440988,-500.0,0.00046575,120]
[354715499,1740641440998,-500.0,0.00046575,120]
[354715500,1740641441007,-500.0,0.00046575,120]
[354715501,1740641441018,-502.23778976,0.00046575,120]
[354715502,1740641441027,-500.0,0.00046575,120]
[354715503,1740641441037,-500.0,0.00046575,120]
[354715504,1740641441046,-500.0,0.00046575,120]
[354715505,1740641441055,-500.0,0.00046575,120]
[354715506,1740641441065,-500.0,0.00046575,120]
[354715507,1740641441074,-500.0,0.00046575,120]
[354715508,1740641441083,-500.0,0.00046575,120]
[354715509,1740641441092,-500.0,0.00046575,120]
[354715510,1740641441102,-802.63,0.00046575,120]
[354715511,1740641441111,-500.0,0.00046575,120]
[354715512,1740641441120,-500.0,0.00046575,120]
[354715513,1740641441129,-500.0,0.00046575,120]
[354715514,1740641441139,-645.74860392,0.00046575,120]
[354715515,1740641441147,-500.0,0.00046575,120]
[354715516,1740641441157,-500.0,0.00046575,120]
[354715517,1740641441169,-508.56,0.00046575,120]
[354715518,1740641441179,-500.0,0.00046575,120]
[354715519,1740641441190,-500.0,0.00046575,120]
[354715520,1740641441199,-500.0,0.00046575,120]
[354715521,1740641441208,-500.0,0.00046575,120]
[354715522,1740641441218,-500.0,0.00046575,120]
[354715523,1740641441227,-500.0,0.00046575,120]
[354715524,1740641441236,-500.0,0.00046575,7]
[354715525,1740641441245,-500.0,0.00046575,120]
[354715526,1740641441255,-500.0,0.00046575,120]
[354715527,1740641441264,-500.0,0.00046575,120]
[354715528,1740641441274,-500.0,0.00046575,120]
[354715529,1740641441283,-976.45,0.00046575,120]
[354715530,1740641441293,-500.0,0.00046575,120]
[354715531,1740641441302,-500.0,0.00046575,120]
[354715532,1740641441312,-500.0,0.00046575,120]
[354715533,1740641441322,-500.0,0.00046575,120]
[354715534,1740641441332,-582.88104209,0.00046575,120]
[354715535,1740641441343,-500.0,0.00046575,120]
[354715536,1740641441352,-410.70997198,0.00046575,120]
[354715537,1740641441362,-501.75558743,0.00046575,120]
[354715538,1740641441370,-500.0,0.00046575,120]
[354715539,1740641441379,-500.0,0.00046575,120]
[354715540,1740641441388,-501.77666782,0.00046575,120]
[354715541,1740641441398,-500.0,0.00046575,120]
[354715542,1740641441408,-538.33,0.00046575,120]
[354715543,1740641441417,-500.98655484,0.00046575,120]
[354715544,1740641441427,-500.0,0.00046575,120]
[354715545,1740641441435,-500.0,0.00046575,120]
[354715546,1740641441445,-500.0,0.00046575,120]
[354715547,1740641441454,-569.88,0.00046575,120]
[354715548,1740641441464,-500.0,0.00046575,120]
[354715549,1740641441473,-500.0,0.00046575,120]
[354715550,1740641441483,-650.11,0.00046575,120]
[354715551,1740641441493,-500.0,0.00046575,120]
[354715552,1740641441503,-702.96,0.00046575,120]
[354715553,1740641441512,-500.0,0.00046575,120]
[354715554,1740641441522,-500.0,0.00046575,120]
[354715555,1740641441531,-500.0,0.00046575,120]
[354715556,1740641441541,-502.70657178,0.00046575,120]
[354715557,1740641441551,-500.0,0.00046575,120]
[354715558,1740641441560,-500.0,0.00046575,120]
[354715559,1740641441570,-500.0,0.00046575,120]
[354715560,1740641441579,-500.0,0.00046575,120]
[354715561,1740641441590,-536.6,0.00046575,120]
[354715562,1740641441599,-500.0,0.00046575,120]
[354715563,1740641441608,-500.0,0.00046575,120]
[354715564,1740641441618,-500.0,0.00046575,120]
[354715565,1740641441627,-500.0,0.00046575,120]
[354715566,1740641441636,-698.89,0.00046575,120]
[354715567,1740641441646,-461.5685709,0.00046575,120]
[354715568,1740641441655,-500.0,0.00046575,120]
[354715569,1740641441664,-500.0,0.00046575,120]
[354715570,1740641441674,-588.99,0.00046575,120]
[354715571,1740641441683,-500.0,0.00046575,120]
[354715572,1740641441695,-500.0,0.00046575,10]
[354715573,1740641441704,-488.72,0.00046575,120]
[354715574,1740641441713,-500.0,0.00046575,120]
[354715575,1740641441723,-500.0,0.00046575,120]
[354715576,1740641441732,-500.0,0.00046575,120]
[354715577,1740641441741,-500.0,0.00046575,120]
[354715578,1740641441751,-507.43872193,0.00046575,120]
[354715579,1740641441760,-500.0,0.00046575,120]
[354715580,1740641441770,-505.19998267,0.00046575,120]
[354715581,1740641441780,-1018.14,0.00046575,120]
[354715582,1740641441790,-500.0,0.00046575,120]
[354715583,1740641441800,-501.13971128,0.00046575,120]
[354715584,1740641441810,-500.0,0.00046575,120]
[354715585,1740641441819,-500.0,0.00046575,120]
[354715586,1740641441829,-500.0,0.00046575,120]
[354715587,1740641441839,-500.0,0.00046575,120]
[354715588,1740641441848,-503.79120332,0.00046575,120]
[354715589,1740641441857,-500.0,0.00046575,120]
[354715590,1740641441867,-500.0,0.00046575,120]
[354715591,1740641441876,-500.0,0.00046575,120]
[354715592,1740641441885,-772.41,0.00046575,120]
[354715593,1740641441895,-500.0,0.00046575,120]
[354715594,1740641441904,-500.0,0.00046575,120]
[354715595,1740641441914,-500.0,0.00046575,120]
[354715596,1740641441924,-500.0,0.00046575,120]
[354715597,1740641441933,-500.0,0.00046575,120]
[354715598,1740641441943,-500.0,0.00046575,120]
[354715599,1740641441952,-500.0,0.00046575,120]
[354715600,1740641441961,-500.0,0.00046575,120]
[354715601,1740641441970,-500.0,0.00046575,120]
[354715602,1740641441979,-503.17116881,0.00046575,120]
[354715603,1740641441989,-500.0,0.00046575,120]
[354715604,1740641441998,-500.0,0.00046575,7]
[354715605,1740641442007,-500.0,0.00046575,120]
[354715606,1740641442017,-500.0,0.00046575,120]
[354715607,1740641442027,-500.0,0.00046575,120]
[354715608,1740641442036,-500.0,0.00046575,120]
[354715609,1740641442045,-500.0,0.00046575,120]
[354715610,1740641442054,-500.0,0.00046575,120]
[354715611,1740641442063,-825.43,0.00046575,120]
[354715612,1740641442073,-500.0,0.00046575,120]
[354715613,1740641442082,-501.68645118,0.00046575,120]
[354715614,1740641442092,-500.0,0.00046575,120]
[354715615,1740641442101,-500.0,0.00046575,120]
[354715616,1740641442111,-502.81041958,0.00046575,120]
[354715617,1740641442120,-500.0,0.00046575,120]
[354715618,1740641442129,-250.00584549,0.00046575,120]
[354715619,1740641442139,-500.0,0.00046575,120]
[354715620,1740641442148,-500.0,0.00046575,120]
[354715621,1740641442159,-500.0,0.00046575,120]
[354715622,1740641442171,-500.0,0.00046575,120]
[354715624,1740641442181,-500.0,0.00046575,120]
[354715626,1740641442191,-150.41863329,0.00046575,120]
[354715628,1740641442202,-500.0,0.00046575,120]
[354715629,1740641442211,-510.61799891,0.00046575,120]
[354715630,1740641442221,-500.0,0.00046575,120]
[354715631,1740641442230,-500.0,0.00046575,120]
[354715632,1740641442242,-500.0,0.00046575,120]
[354715633,1740641442252,-500.0,0.00046575,120]
[354715634,1740641442261,-500.0,0.00046575,120]
[354715635,1740641442271,-500.0,0.00046575,120]
[354715636,1740641442281,-500.0,0.00046575,120]
[354715637,1740641442291,-500.0,0.00046575,120]
[354715638,1740641442301,-500.0,0.00046575,120]
[354715640,1740641442311,-161.91501548,0.00046575,120]
[354715641,1740641442321,-520.43,0.00046575,120]
[354715642,1740641442331,-500.0,0.00046575,120]
[354715643,1740641442339,-500.0,0.00046575,120]
[354715645,1740641442349,-290.02972658,0.00046575,120]
[354715647,1740641442359,-500.0,0.00046575,120]
[354715649,1740641442368,-500.0,0.00046575,120]
[354715650,1740641442378,-406.3700684,0.00046575,120]
[354715651,1740641442387,-500.0,0.00046575,120]
[354715652,1740641442397,-12713.15,0.00046575,120]
[354715653,1740641442406,-501.19555905,0.00046575,2]
[354715654,1740641442416,-500.0,0.00046575,120]
[354715655,1740641442425,-500.0,0.00046575,120]
[354715656,1740641442435,-613.35,0.00046575,120]
[354715657,1740641442448,-401.83904861,0.00046575,120]
[354715658,1740641442458,-500.0,0.00046575,120]
[354715659,1740641442468,-1448.45,0.00046575,120]
[354715660,1740641442478,-500.0,0.00046575,120]
[354715661,1740641442488,-500.0,0.00046575,120]
[354715662,1740641442498,-500.0,0.00046575,120]
[354715663,1740641442508,-500.0,0.00046575,120]
[354715664,1740641442518,-500.0,0.00046575,120]
[354715665,1740641442527,-500.0,0.00046575,120]
[354715666,1740641442536,-500.0,0.00046575,120]
[354715667,1740641442545,-500.0,0.00046575,120]
[354715669,1740641442555,-4366.58,0.00046575,120]
[354715670,1740641442564,-516.57,0.00046575,120]
[354715671,1740641442574,-500.0,0.00046575,120]
[354715672,1740641442583,-500.0,0.00046575,120]
[354715674,1740641442593,-500.5069508,0.00046575,120]
[354715676,1740641442603,-500.0,0.00046575,120]
[354715677,1740641442763,-4020.22,0.00046575,120]
[354715678,1740641442773,-500.0,0.00046575,120]
[354715679,1740641442784,-500.0,0.00046575,120]
[354715680,1740641442793,-500.0,0.00046575,120]
[354715681,1740641442803,-828.28,0.00046575,120]
[354715682,1740641442812,-858.62,0.00046575,120]
[354715683,1740641442822,-500.0,0.00046575,14]
[354715684,1740641442831,-500.0,0.00046575,120]
[354715685,1740641442841,-813.7,0.00046575,120]
[354715686,1740641442851,-266.99326494,0.00046575,120]
[354715687,1740641442860,-500.0,0.00046575,120]
[354715688,1740641442870,-500.0,0.00046575,120]
[354715689,1740641442879,-500.0,0.00046575,120]
[354715690,1740641442889,-5339.17,0.00046575,120]
[354715691,1740641442900,-10805.99,0.00046575,120]
[354715692,1740641442911,-500.0,0.00046575,120]
[354715693,1740641442921,-406.36488049,0.00046575,120]
[354715694,1740641442931,-500.0,0.00046575,120]
[354715696,1740641442943,-501.42730708,0.00046575,60]
[354715698,1740641442953,-1205.99,0.00046575,120]
[354715699,1740641442962,-1037.98,0.00046575,120]
[354715700,1740641442971,-51685.2,0.00046575,7]
[354715701,1740641442980,-500.0,0.00046575,120]
[354715702,1740641442990,-500.0,0.00046575,120]
[354715703,1740641442999,-500.0,0.00046575,120]
[354715704,1740641443008,-500.0,0.00046575,120]
[354715705,1740641443018,-500.0,0.00046575,120]
[354715706,1740641443027,-2430.49,0.00046575,120]
[354715707,1740641443037,-500.0,0.00046575,120]
[354715708,1740641443046,-293.03795943,0.00046575,120]
[354715709,1740641443056,-961.31,0.00046575,120]
[354715710,1740641443065,-504.61031662,0.00046575,120]
[354715711,1740641443075,-1565.78,0.00046575,120]
[354715712,1740641443084,-500.0,0.00046575,120]
[354715713,1740641443094,-500.0,0.00046575,120]
[354715714,1740641443104,-500.0,0.00046575,120]
[354715715,1740641443113,-500.0,0.00046575,120]
[354715716,1740641443122,-1000.0,0.00046575,30]
[354715717,1740641443132,-500.0,0.00046575,120]
[354715718,1740641443142,-500.0,0.00046575,120]
[354715719,1740641443151,-500.0,0.00046575,120]
[354715720,1740641443164,-500.0,0.00046575,120]
[354715721,1740641443173,-151.0,0.00046575,120]
[354715722,1740641443183,-4928.25,0.00046575,120]
[354715723,1740641443194,-835.55,0.00046575,120]
[354715724,1740641443203,-500.0,0.00046575,120]
[354715725,1740641443213,-500.0,0.00046575,120]
[354715726,1740641443222,-500.0,0.00046575,120]
[354715727,1740641443232,-540.58,0.00046575,120]
[354715728,1740641443242,-500.0,0.00046575,120]
[354715729,1740641443252,-151.0,0.00046575,120]
[354715730,1740641443262,-500.0,0.00046575,120]
[354715731,1740641443271,-500.0,0.00046575,120]
[354715732,1740641443280,-500.0,0.00046575,120]
[354715733,1740641443291,-500.0,0.00046575,120]
[354715734,1740641443300,-500.0,0.00046575,120]
[354715735,1740641443311,-672.66,0.00046575,120]
[354715736,1740641443320,-500.0,0.00046575,120]
[354715737,1740641443329,-500.0,0.00046575,120]
[354715738,1740641443340,-1510.32,0.00046575,120]
[354715739,1740641443350,-500.0,0.00046575,120]
[354715740,1740641443360,-500.0,0.00046575,120]
[354715741,1740641443369,-500.0,0.00046575,120]
[354715742,1740641443379,-500.3485424,0.00046575,120]
[354715743,1740641443388,-500.0,0.00046575,30]
[354715744,1740641443398,-2312.33,0.00046575,120]
[354715745,1740641443407,-500.0,0.00046575,120]
[354715746,1740641443417,-500.0,0.00046575,120]
[354715747,1740641443426,-648.21682043,0.00046575,120]
[354715748,1740641443436,-500.0,0.00046575,120]
[354715749,1740641443447,-151.0,0.00046575,120]
[354715750,1740641443456,-500.0,0.00046575,120]
[354715751,1740641443465,-500.0,0.00046575,120]
[354715752,1740641443475,-500.0,0.00046575,120]
[354715753,1740641443485,-151.0,0.00046575,120]
[354715754,1740641443494,-500.0,0.00046575,120]
[354715755,1740641443503,-500.0,0.00046575,120]
[354715756,1740641443513,-500.0,0.00046575,120]
[354715757,1740641443522,-956.22,0.00046575,120]
[354715758,1740641443532,-500.0,0.00046575,120]
[354715759,1740641443542,-500.0,0.00046575,120]
[354715760,1740641443551,-1000.0,0.00046575,2]
[354715761,1740641443561,-500.0,0.00046575,120]
[354715762,1740641443571,-842.78,0.00046575,120]
[354715763,1740641443581,-500.0,0.00046575,120]
[354715764,1740641443590,-500.0,0.00046575,120]
[354715765,1740641443599,-500.84622981,0.00046575,120]
[354715766,1740641443609,-500.0,0.00046575,120]
[354715767,1740641443619,-1912.17,0.00046575,120]
[354715768,1740641443628,-183.599976,0.00046575,120]
[354715769,1740641443638,-500.0,0.00046575,120]
[354715770,1740641443647,-500.0,0.00046575,120]
[354715771,1740641443656,-500.0,0.00046575,120]
[354715772,1740641443666,-500.0,0.00046575,120]
[354715773,1740641443675,-500.0,0.00046575,120]
[354715774,1740641443684,-342.87776324,0.00046575,120]
[354715775,1740641443694,-501.25218372,0.00046575,120]
[354715776,1740641443704,-1263.98,0.00046575,120]
[354715777,1740641443713,-500.0,0.00046575,120]
[354715778,1740641443722,-500.0,0.00046575,120]
[354715779,1740641443731,-500.0,0.00046575,120]
[354715780,1740641443741,-848.88,0.00046575,120]
[354715781,1740641443751,-500.0,0.00046575,120]
[354715782,1740641443760,-501.36293913,0.00046575,120]
[354715783,1740641443769,-500.0,0.00046575,120]
[354715784,1740641443779,-514.21,0.00046575,120]
[354715785,1740641443788,-501.18124144,0.00046575,120]
[354715786,1740641443797,-151.0,0.00046575,120]
[354715787,1740641443806,-500.95143252,0.00046575,120]
[354715788,1740641443815,-500.0,0.00046575,120]
[354715789,1740641443825,-500.0,0.00046575,120]
[354715790,1740641443834,-510.01741039,0.00046575,120]
[354715791,1740641443843,-500.0,0.00046575,120]
[354715792,1740641443853,-249.947543,0.00046575,120]
[354715793,1740641443862,-503.43,0.00046575,120]
[354715794,1740641443871,-500.0,0.00046575,120]
[354715795,1740641443881,-151.0,0.00046575,110]
[354715796,1740641443890,-672.25,0.00046575,120]
[354715797,1740641443899,-500.0,0.00046575,120]
[354715798,1740641443909,-500.0,0.00046575,120]
[354715799,1740641443918,-521.72,0.00046575,120]
[354715800,1740641443928,-500.0,0.00046575,120]
[354715801,1740641443937,-500.0,0.00046575,120]
[354715802,1740641443947,-500.0,0.00046575,120]
[354715803,1740641443957,-500.0,0.00046575,120]
[354715804,1740641443966,-500.0,0.00046575,120]
[354715805,1740641443975,-500.0,0.00046575,120]
[354715806,1740641443984,-1263.78,0.00046575,120]
[354715807,1740641443993,-500.0,0.00046575,120]
[354715808,1740641444003,-500.0,0.00046575,120]
[354715809,1740641444012,-500.0,0.00046575,120]
[354715810,1740641444022,-500.0,0.00046575,120]
[354715811,1740641444031,-1032.21,0.00046575,120]
[354715812,1740641444040,-500.0,0.00046575,120]
[354715813,1740641444049,-500.0,0.00046575,21]
[354715814,1740641444059,-500.0,0.00046575,120]
[354715815,1740641444068,-500.0,0.00046575,120]
[354715816,1740641444078,-2806.26,0.00046575,120]
[354715817,1740641444087,-500.0,0.00046575,120]
[354715818,1740641444096,-500.0,0.00046575,120]
[354715819,1740641444105,-500.0,0.00046575,120]
[354715820,1740641444115,-500.08,0.00046575,120]
[354715821,1740641444124,-500.0,0.00046575,120]
[354715822,1740641444133,-500.0,0.00046575,120]
[354715823,1740641444142,-500.0,0.00046575,120]
[354715824,1740641444152,-500.0,0.00046575,120]
[354715825,1740641444163,-500.0,0.00046575,120]
[354715826,1740641444176,-500.0,0.00046575,120]
[354715827,1740641444185,-500.0,0.00046575,120]
[354715828,1740641444197,-500.0,0.00046575,120]
[354715829,1740641444207,-500.0,0.00046575,120]
[354715830,1740641444218,-500.0,0.00046575,120]
[354715831,1740641444227,-500.0,0.00046575,120]
[354715832,1740641444237,-500.0,0.00046575,120]
[354715833,1740641444247,-630.6,0.00046575,120]
[354715834,1740641444257,-259.71915706,0.00046575,120]
[354715835,1740641444265,-500.0,0.00046575,120]
[354715836,1740641444275,-1016.19,0.00046575,120]
[354715837,1740641444284,-500.0,0.00046575,120]
[354715838,1740641444294,-500.0,0.00046575,120]
[354715839,1740641444303,-500.0,0.00046575,120]
[354715840,1740641444313,-500.0,0.00046575,120]
[354715841,1740641444322,-500.0,0.00046575,30]
[354715842,1740641444332,-500.0,0.00046575,120]
[354715843,1740641444341,-500.0,0.00046575,120]
[354715844,1740641444351,-500.0,0.00046575,120]
[354715845,1740641444361,-500.0,0.00046575,120]
[354715846,1740641444370,-500.0,0.00046575,120]
[354715847,1740641444380,-7097.45,0.00046575,6]
[354715848,1740641444389,-1317.53,0.00046575,120]
[354715849,1740641444398,-218.850713,0.00046575,120]
[354715850,1740641444408,-500.0,0.00046575,120]
[354715851,1740641444417,-532.15,0.00046575,120]
[354715852,1740641444427,-500.0,0.00046575,120]
[354715853,1740641444437,-500.0,0.00046575,120]
[354715854,1740641444448,-763.16,0.00046575,120]
[354715855,1740641444457,-500.0,0.00046575,120]
[354715856,1740641444467,-500.0,0.00046575,120]
[354715857,1740641444477,-500.0,0.00046575,120]
[354715858,1740641444489,-500.0,0.00046575,120]
[354715859,1740641444498,-500.0,0.00046575,120]
[354715860,1740641444508,-500.0,0.00046575,120]
[354715861,1740641444517,-851.83,0.00046575,120]
[354715862,1740641444526,-500.0,0.00046575,120]
[354715863,1740641444535,-2709.78,0.00046575,120]
[354715864,1740641444545,-1167.97,0.00046575,120]
[354715865,1740641444555,-500.0,0.00046575,120]
[354715866,1740641444564,-502.71019352,0.00046575,120]
[354715867,1740641444573,-1192.52,0.00046575,120]
[354715868,1740641444583,-500.0,0.00046575,120]
[354715869,1740641444592,-500.0,0.00046575,120]
[354715870,1740641444602,-151.63,0.00046575,30]
[354715871,1740641444611,-151.0,0.00046575,120]
[354715872,1740641444621,-151.0,0.00046575,120]
[354715873,1740641444630,-151.0,0.00046575,120]
[354715874,1740641444640,-151.0,0.00046575,120]
[354715875,1740641444649,-151.0,0.00046575,120]
[354715876,1740641444659,-151.0,0.00046575,120]
[354715877,1740641444669,-151.0,0.00046575,120]
[354715878,1740641444679,-151.0,0.00046575,120]
[354715879,1740641444690,-151.0,0.00046575,120]
[354715880,1740641444700,-151.0,0.00046575,120]
[354715881,1740641444710,-151.0,0.00046575,120]
[354715882,1740641444720,-151.0,0.00046575,120]
[354715883,1740641444729,-151.0,0.00046575,120]
[354715884,1740641444739,-151.0,0.00046575,120]
[354715885,1740641444749,-151.0,0.00046575,120]
[354715886,1740641444759,-151.0,0.00046575,120]
[354715887,1740641444768,-151.0,0.00046575,120]
[354715888,1740641444777,-151.0,0.00046575,120]
[354715889,1740641444787,-151.0,0.00046575,120]
[354715890,1740641444796,-220.36226,0.00046575,120]
[354715891,1740641444806,-109759.44,0.000466,30]
[354715892,1740641444815,-153.91,0.000466,30]
[354715893,1740641444824,-4995.63,0.000466,30]
[354715894,1740641444833,-151.0,0.000466,120]
[354715895,1740641444842,-151.0,0.000466,120]
[354715896,1740641444852,-151.0,0.000466,120]
[354715897,1740641444861,-151.0,0.000466,120]
[354715898,1740641444870,-151.0,0.000466,120]
[354715899,1740641444879,-151.0,0.000466,120]
[354715900,1740641444889,-151.359497,0.000466,120]
[354715901,1740641444898,-151.0,0.000466,120]
[354715902,1740641444908,-223.954488,0.000466,120]
[354715903,1740641444917,-223.954488,0.000466,120]
[354715904,1740641444927,-151.0,0.000466,120]
[354715905,1740641444936,-151.0,0.000466,120]
[354715906,1740641444947,-151.0,0.000466,120]
[354715907,1740641444956,-151.0,0.000466,120]
[354715908,1740641444965,-151.0,0.000466,120]
[354715909,1740641444975,-151.0,0.000466,120]
[354715910,1740641444984,-151.0,0.000466,120]
[354715911,1740641444993,-151.0,0.000466,110]
[354715912,1740641445003,-151.0,0.000466,120]
[354715913,1740641445012,-226.21346484,0.00046848,120]
[354715914,1740641445021,-500.0,0.00046848,31]
[354715915,1740641445031,-500.0,0.00046848,120]